[Event "Titled Tuesday Blitz October 11 Late 2022"]
[White "Keymer, Vincent"]
[Black "Barria Zuniga, Daniel"]
[WhiteFideId "12940690"]
[BlackFideId "3400816"]
[WhiteElo "2600"]
[BlackElo "2414"]
[Result "0-1"]
[Round "02"]
[TimeControl "180+1"]
[Date "2022.10.11"]
[WhiteClock "0:00:02"]
[BlackClock "0:00:11"]

1. Nf3 {[%clk 0:02:57]}  d5 {[%clk 0:02:57]} 2. c4 {[%clk 0:02:57]}  e6 {[%clk 0:02:57]} 3. e3 {[%clk 0:02:55]}  Nf6 {[%clk 0:02:57]} 4. Nc3 {[%clk 0:02:54]}  g6 {[%clk 0:02:55]} 5. b3 {[%clk 0:02:52]}  Bg7 {[%clk 0:02:55]} 6. Bb2 {[%clk 0:02:52]}  O-O {[%clk 0:02:54]} 7. d4 {[%clk 0:02:51]}  b6 {[%clk 0:02:50]} 8. g3 {[%clk 0:02:47]}  Ba6 {[%clk 0:02:41]} 9. Bg2 {[%clk 0:02:30]}  Qe7 {[%clk 0:02:24]} 10. Ne5 {[%clk 0:02:16]}  Rd8 {[%clk 0:02:22]} 11. O-O {[%clk 0:02:13]}  c6 {[%clk 0:02:07]} 12. a4 {[%clk 0:02:04]}  Nfd7 {[%clk 0:01:41]} 13. Ba3 {[%clk 0:02:02]}  Qe8 {[%clk 0:01:41]} 14. f4 {[%clk 0:02:01]}  Nxe5 {[%clk 0:01:37]} 15. fxe5 {[%clk 0:01:52]}  dxc4 {[%clk 0:01:32]} 16. Ne4 {[%clk 0:01:49]}  cxb3 {[%clk 0:01:33]} 17. Rf2 {[%clk 0:01:32]}  Bc4 {[%clk 0:01:32]} 18. Nd6 {[%clk 0:00:54]}  Rxd6 {[%clk 0:01:31]} 19. Bxd6 {[%clk 0:00:54]}  Nd7 {[%clk 0:01:01]} 20. Bxc6 {[%clk 0:00:44]}  Rc8 {[%clk 0:00:59]} 21. Bb5 {[%clk 0:00:39]}  Bh6 {[%clk 0:00:46]} 22. Bxc4 {[%clk 0:00:22]}  Rxc4 {[%clk 0:00:47]} 23. Qxb3 {[%clk 0:00:22]}  Qc8 {[%clk 0:00:44]} 24. Ra3 {[%clk 0:00:06]}  Rc1+ {[%clk 0:00:42]} 25. Kg2 {[%clk 0:00:05]}  Qb7+ {[%clk 0:00:42]} 26. d5 {[%clk 0:00:04]}  exd5 {[%clk 0:00:37]} 27. Qd3 {[%clk 0:00:05]}  Nc5 {[%clk 0:00:30]} 28. Qd4 {[%clk 0:00:04]}  Rc4 {[%clk 0:00:29]} 29. Qd1 {[%clk 0:00:03]}  d4+ {[%clk 0:00:29]} 30. Qf3 {[%clk 0:00:03]}  Qxf3+ {[%clk 0:00:28]} 31. Kxf3 {[%clk 0:00:04]}  Bxe3 {[%clk 0:00:28]} 32. Rfa2 {[%clk 0:00:04]}  f5 {[%clk 0:00:25]} 33. a5 {[%clk 0:00:03]}  Kf7 {[%clk 0:00:24]} 34. axb6 {[%clk 0:00:03]}  axb6 {[%clk 0:00:25]} 35. Ra7+ {[%clk 0:00:04]}  Ke6 {[%clk 0:00:25]} 36. Re7+ {[%clk 0:00:03]}  Kd5 {[%clk 0:00:25]} 37. Raa7 {[%clk 0:00:04]}  g5 {[%clk 0:00:25]} 38. Bxc5 {[%clk 0:00:04]}  g4+ {[%clk 0:00:24]} 39. Ke2 {[%clk 0:00:04]}  bxc5 {[%clk 0:00:23]} 40. Rad7+ {[%clk 0:00:03]}  Ke4 {[%clk 0:00:24]} 41. e6 {[%clk 0:00:01]}  d3+ {[%clk 0:00:17]} 42. Rxd3 {[%clk 0:00:01]}  Rc2+ {[%clk 0:00:17]} 43. Kd1 {[%clk 0:00:02]}  Kxd3 {[%clk 0:00:17]} 44. Rd7+ {[%clk 0:00:02]}  Bd4 {[%clk 0:00:18]} 45. e7 {[%clk 0:00:02]}  Re2 {[%clk 0:00:17]} 46. Kc1 {[%clk 0:00:03]}  c4 {[%clk 0:00:15]} 47. Kb1 {[%clk 0:00:02]}  c3 {[%clk 0:00:15]} 48. Rc7 {[%clk 0:00:02]}  c2+ {[%clk 0:00:10]} 49. Rxc2 {[%clk 0:00:02]}  Rxe7 {[%clk 0:00:11]} 50. Ra2 {[%clk 0:00:02]}  Re1# {[%clk 0:00:11]} 0-1


[Site "https://www.chess.com"]

[Event "Titled Tuesday Blitz October 11 Late 2022"]
[White "Kislinsky, Alexey"]
[Black "Pasti, Aron"]
[WhiteFideId "14108801"]
[BlackFideId "785857"]
[WhiteElo "2260"]
[BlackElo "2250"]
[Result "1/2-1/2"]
[Round "02"]
[TimeControl "180+1"]
[Date "2022.10.12"]
[WhiteClock "0:00:28"]
[BlackClock "0:00:11"]

1. e4 {[%clk 0:02:50]}  c5 {[%clk 0:02:48]} 2. c3 {[%clk 0:02:50]}  d5 {[%clk 0:02:46]} 3. exd5 {[%clk 0:02:50]}  Qxd5 {[%clk 0:02:47]} 4. Nf3 {[%clk 0:02:50]}  e6 {[%clk 0:02:46]} 5. Be2 {[%clk 0:02:47]}  Nc6 {[%clk 0:02:44]} 6. O-O {[%clk 0:02:48]}  Nf6 {[%clk 0:02:44]} 7. d4 {[%clk 0:02:48]}  cxd4 {[%clk 0:02:44]} 8. cxd4 {[%clk 0:02:49]}  Be7 {[%clk 0:02:42]} 9. Nc3 {[%clk 0:02:50]}  Qd8 {[%clk 0:02:41]} 10. Bg5 {[%clk 0:02:48]}  O-O {[%clk 0:02:41]} 11. a3 {[%clk 0:02:48]}  b6 {[%clk 0:02:40]} 12. Bd3 {[%clk 0:02:48]}  Bb7 {[%clk 0:02:38]} 13. Re1 {[%clk 0:02:49]}  h6 {[%clk 0:02:38]} 14. Be3 {[%clk 0:02:47]}  Bd6 {[%clk 0:02:31]} 15. Bc2 {[%clk 0:02:46]}  Ne7 {[%clk 0:02:31]} 16. Ne5 {[%clk 0:02:43]}  Nfd5 {[%clk 0:02:11]} 17. Qd3 {[%clk 0:02:41]}  Nf5 {[%clk 0:02:05]} 18. Bd2 {[%clk 0:02:36]}  Qh4 {[%clk 0:01:56]} 19. Re4 {[%clk 0:02:32]}  Qe7 {[%clk 0:01:45]} 20. Rg4 {[%clk 0:02:30]}  Nf6 {[%clk 0:01:39]} 21. Rf4 {[%clk 0:02:19]}  Rfd8 {[%clk 0:01:20]} 22. Qe2 {[%clk 0:02:16]}  g6 {[%clk 0:01:12]} 23. Re1 {[%clk 0:02:13]}  Bxe5 {[%clk 0:01:09]} 24. dxe5 {[%clk 0:02:13]}  Nd5 {[%clk 0:01:07]} 25. Rg4 {[%clk 0:01:56]}  h5 {[%clk 0:01:02]} 26. Bg5 {[%clk 0:01:38]}  Qd7 {[%clk 0:00:44]} 27. Nxd5 {[%clk 0:01:34]}  Qxd5 {[%clk 0:00:36]} 28. Be4 {[%clk 0:01:34]}  Qxe5 {[%clk 0:00:35]} 29. Rf4 {[%clk 0:01:31]}  Rd4 {[%clk 0:00:31]} 30. h4 {[%clk 0:01:21]}  Bxe4 {[%clk 0:00:28]} 31. Rxe4 {[%clk 0:01:22]}  Rxe4 {[%clk 0:00:28]} 32. Qxe4 {[%clk 0:01:23]}  Qxe4 {[%clk 0:00:28]} 33. Rxe4 {[%clk 0:01:24]}  Rc8 {[%clk 0:00:28]} 34. f3 {[%clk 0:01:20]}  Kg7 {[%clk 0:00:28]} 35. g4 {[%clk 0:01:20]}  Rc1+ {[%clk 0:00:27]} 36. Kf2 {[%clk 0:01:17]}  Rc2+ {[%clk 0:00:27]} 37. Ke1 {[%clk 0:01:17]}  Ng3 {[%clk 0:00:22]} 38. Rf4 {[%clk 0:01:14]}  f5 {[%clk 0:00:15]} 39. Rd4 {[%clk 0:01:09]}  hxg4 {[%clk 0:00:10]} 40. fxg4 {[%clk 0:01:09]}  fxg4 {[%clk 0:00:09]} 41. Rxg4 {[%clk 0:01:09]}  Nf5 {[%clk 0:00:09]} 42. b4 {[%clk 0:01:08]}  Ra2 {[%clk 0:00:08]} 43. Rc4 {[%clk 0:01:07]}  Rxa3 {[%clk 0:00:07]} 44. Rc7+ {[%clk 0:01:07]}  Kg8 {[%clk 0:00:07]} 45. Kd2 {[%clk 0:01:05]}  a5 {[%clk 0:00:07]} 46. b5 {[%clk 0:01:03]}  Rb3 {[%clk 0:00:06]} 47. Rc6 {[%clk 0:01:01]}  Rxb5 {[%clk 0:00:06]} 48. Rxe6 {[%clk 0:01:02]}  a4 {[%clk 0:00:07]} 49. Rxg6+ {[%clk 0:01:02]}  Kh7 {[%clk 0:00:07]} 50. Rf6 {[%clk 0:00:59]}  Kg7 {[%clk 0:00:06]} 51. Rc6 {[%clk 0:00:51]}  a3 {[%clk 0:00:06]} 52. h5 {[%clk 0:00:46]}  a2 {[%clk 0:00:05]} 53. Bf6+ {[%clk 0:00:42]}  Kf7 {[%clk 0:00:05]} 54. Bc3 {[%clk 0:00:40]}  Rb1 {[%clk 0:00:05]} 55. Rf6+ {[%clk 0:00:39]}  Ke7 {[%clk 0:00:05]} 56. Rxf5 {[%clk 0:00:39]}  a1=Q {[%clk 0:00:05]} 57. Bxa1 {[%clk 0:00:39]}  Rxa1 {[%clk 0:00:06]} 58. Rf4 {[%clk 0:00:30]}  Rh1 {[%clk 0:00:06]} 59. Rf5 {[%clk 0:00:30]}  Ke6 {[%clk 0:00:06]} 60. Rb5 {[%clk 0:00:30]}  Kf7 {[%clk 0:00:06]} 61. Ke3 {[%clk 0:00:31]}  Kg7 {[%clk 0:00:07]} 62. Kf4 {[%clk 0:00:31]}  Kh6 {[%clk 0:00:07]} 63. Kg4 {[%clk 0:00:31]}  Rg1+ {[%clk 0:00:07]} 64. Kh4 {[%clk 0:00:31]}  Rh1+ {[%clk 0:00:08]} 65. Kg4 {[%clk 0:00:31]}  Rg1+ {[%clk 0:00:09]} 66. Kf4 {[%clk 0:00:31]}  Rh1 {[%clk 0:00:10]} 67. Rxb6+ {[%clk 0:00:29]}  Kxh5 {[%clk 0:00:10]} 68. Rb5+ {[%clk 0:00:30]}  Kh4 {[%clk 0:00:09]} 69. Rb8 {[%clk 0:00:30]}  Rf1+ {[%clk 0:00:10]} 70. Ke3 {[%clk 0:00:30]}  Rf7 {[%clk 0:00:10]} 71. Re8 {[%clk 0:00:29]}  Rf6 {[%clk 0:00:10]} 72. Ke4 {[%clk 0:00:28]}  Rf7 {[%clk 0:00:11]} 73. Rg8 {[%clk 0:00:27]}  Rf6 {[%clk 0:00:10]} 74. Ke5 {[%clk 0:00:28]}  Rf1 {[%clk 0:00:11]} 75. Rg2 {[%clk 0:00:28]}  Rf3 {[%clk 0:00:10]} 76. Ke4 {[%clk 0:00:28]}  Rf1 {[%clk 0:00:11]} 77. Rh2+ {[%clk 0:00:28]}  Kg3 {[%clk 0:00:10]} 78. Rh5 {[%clk 0:00:28]}  Kg4 {[%clk 0:00:11]} 79. Rh7 {[%clk 0:00:28]} 1/2-1/2


[Site "https://www.chess.com"]

[Event "Titled Tuesday Blitz October 11 Late 2022"]
[White "Korkmaz, Necmettin"]
[Black "Djordjevic, Dejan N"]
[WhiteFideId "6303285"]
[BlackFideId "913316"]
[WhiteElo "2094"]
[BlackElo "2262"]
[Result "0-1"]
[Round "02"]
[TimeControl "180+1"]
[Date "2022.10.12"]
[WhiteClock "0:00:15"]
[BlackClock "0:00:04"]

1. e4 {[%clk 0:03:00]}  c5 {[%clk 0:02:58]} 2. Nc3 {[%clk 0:02:54]}  Nc6 {[%clk 0:02:57]} 3. f4 {[%clk 0:02:54]}  d6 {[%clk 0:02:53]} 4. Nf3 {[%clk 0:02:53]}  e6 {[%clk 0:02:53]} 5. Bc4 {[%clk 0:02:53]}  Nf6 {[%clk 0:02:51]} 6. d3 {[%clk 0:02:53]}  a6 {[%clk 0:02:51]} 7. a4 {[%clk 0:02:52]}  Be7 {[%clk 0:02:50]} 8. O-O {[%clk 0:02:52]}  b6 {[%clk 0:02:49]} 9. Qe1 {[%clk 0:02:52]}  Nb4 {[%clk 0:02:16]} 10. Bb3 {[%clk 0:02:31]}  d5 {[%clk 0:02:07]} 11. exd5 {[%clk 0:02:15]}  exd5 {[%clk 0:02:06]} 12. Ne5 {[%clk 0:02:08]}  O-O {[%clk 0:02:01]} 13. Bd2 {[%clk 0:01:52]}  Bb7 {[%clk 0:01:23]} 14. Ne2 {[%clk 0:01:43]}  Nc6 {[%clk 0:01:22]} 15. Nxc6 {[%clk 0:01:39]}  Bxc6 {[%clk 0:01:22]} 16. Ng3 {[%clk 0:01:32]}  Re8 {[%clk 0:01:20]} 17. Qf2 {[%clk 0:01:24]}  Qd7 {[%clk 0:01:20]} 18. f5 {[%clk 0:01:21]}  b5 {[%clk 0:01:13]} 19. axb5 {[%clk 0:01:17]}  axb5 {[%clk 0:01:12]} 20. Rxa8 {[%clk 0:01:15]}  Rxa8 {[%clk 0:01:09]} 21. c4 {[%clk 0:01:15]}  bxc4 {[%clk 0:01:08]} 22. dxc4 {[%clk 0:01:15]}  d4 {[%clk 0:01:08]} 23. Bc2 {[%clk 0:01:07]}  Rb8 {[%clk 0:00:56]} 24. Rb1 {[%clk 0:00:46]}  d3 {[%clk 0:00:49]} 25. Bd1 {[%clk 0:00:44]}  Ne4 {[%clk 0:00:48]} 26. Nxe4 {[%clk 0:00:43]}  Bxe4 {[%clk 0:00:48]} 27. Bg4 {[%clk 0:00:38]}  Bf6 {[%clk 0:00:43]} 28. Kh1 {[%clk 0:00:37]}  Qc6 {[%clk 0:00:32]} 29. Bf4 {[%clk 0:00:32]}  Rb4 {[%clk 0:00:26]} 30. Be3 {[%clk 0:00:24]}  Rxc4 {[%clk 0:00:25]} 31. Rd1 {[%clk 0:00:18]}  h6 {[%clk 0:00:20]} 32. h3 {[%clk 0:00:18]}  Rc2 {[%clk 0:00:17]} 33. Rd2 {[%clk 0:00:18]}  c4 {[%clk 0:00:16]} 34. Rxc2 {[%clk 0:00:17]}  dxc2 {[%clk 0:00:16]} 35. Bc1 {[%clk 0:00:18]}  c3 {[%clk 0:00:15]} 36. bxc3 {[%clk 0:00:17]}  Qxc3 {[%clk 0:00:14]} 37. Qe2 {[%clk 0:00:17]}  Qd3 {[%clk 0:00:13]} 38. Qxd3 {[%clk 0:00:17]}  Bxd3 {[%clk 0:00:13]} 39. Kh2 {[%clk 0:00:18]}  Bg5 {[%clk 0:00:14]} 40. Bb2 {[%clk 0:00:17]}  c1=Q {[%clk 0:00:13]} 41. Bxc1 {[%clk 0:00:17]}  Bxc1 {[%clk 0:00:13]} 42. Kg3 {[%clk 0:00:18]}  g5 {[%clk 0:00:13]} 43. Kf3 {[%clk 0:00:18]}  f6 {[%clk 0:00:13]} 44. Kf2 {[%clk 0:00:17]}  Kf7 {[%clk 0:00:13]} 45. Ke1 {[%clk 0:00:16]}  Ke7 {[%clk 0:00:12]} 46. Kf2 {[%clk 0:00:16]}  Kd6 {[%clk 0:00:12]} 47. Kf3 {[%clk 0:00:17]}  Ke5 {[%clk 0:00:12]} 48. Bh5 {[%clk 0:00:16]}  Bxf5 {[%clk 0:00:11]} 49. Be8 {[%clk 0:00:17]}  Be6 {[%clk 0:00:10]} 50. g4 {[%clk 0:00:17]}  f5 {[%clk 0:00:10]} 51. gxf5 {[%clk 0:00:17]}  Bxf5 {[%clk 0:00:10]} 52. Kg2 {[%clk 0:00:18]}  Kf4 {[%clk 0:00:11]} 53. Bh5 {[%clk 0:00:17]}  Bd2 {[%clk 0:00:09]} 54. Kh2 {[%clk 0:00:17]}  Be1 {[%clk 0:00:09]} 55. Bd1 {[%clk 0:00:15]}  Bg3+ {[%clk 0:00:09]} 56. Kg2 {[%clk 0:00:16]}  Be4+ {[%clk 0:00:09]} 57. Kg1 {[%clk 0:00:16]}  Bf3 {[%clk 0:00:09]} 58. Bc2 {[%clk 0:00:15]}  h5 {[%clk 0:00:08]} 59. Ba4 {[%clk 0:00:15]}  Ke3 {[%clk 0:00:08]} 60. Bd7 {[%clk 0:00:14]}  g4 {[%clk 0:00:07]} 61. hxg4 {[%clk 0:00:14]}  hxg4 {[%clk 0:00:07]} 62. Bc8 {[%clk 0:00:14]}  Bf2+ {[%clk 0:00:05]} 63. Kf1 {[%clk 0:00:14]}  g3 {[%clk 0:00:05]} 64. Bh3 {[%clk 0:00:13]}  Kf4 {[%clk 0:00:04]} 65. Bg2 {[%clk 0:00:13]}  Bxg2+ {[%clk 0:00:04]} 66. Kxg2 {[%clk 0:00:14]}  Kg4 {[%clk 0:00:04]} 67. Kh1 {[%clk 0:00:14]}  Be1 {[%clk 0:00:02]} 68. Kg2 {[%clk 0:00:14]}  Bd2 {[%clk 0:00:03]} 69. Kh1 {[%clk 0:00:14]}  Kf3 {[%clk 0:00:03]} 70. Kg1 {[%clk 0:00:14]}  Be3+ {[%clk 0:00:03]} 71. Kf1 {[%clk 0:00:15]}  g2+ {[%clk 0:00:03]} 72. Ke1 {[%clk 0:00:15]}  g1=Q# {[%clk 0:00:04]} 0-1


[Site "https://www.chess.com"]

[Event "Titled Tuesday Blitz October 11 Late 2022"]
[White "Kostiukov, Alexandr"]
[Black "Richter, Paul"]
[WhiteFideId "14108100"]
[BlackFideId "2046350"]
[WhiteElo "2202"]
[BlackElo "2502"]
[Result "1-0"]
[Round "02"]
[TimeControl "180+1"]
[Date "2022.10.12"]
[WhiteClock "0:00:29"]
[BlackClock "0:00:14"]

1. g3 {[%clk 0:03:00]}  Nf6 {[%clk 0:02:59]} 2. Bg2 {[%clk 0:03:01]}  g6 {[%clk 0:03:00]} 3. c4 {[%clk 0:03:00]}  Bg7 {[%clk 0:03:00]} 4. Nf3 {[%clk 0:03:01]}  O-O {[%clk 0:03:00]} 5. O-O {[%clk 0:03:02]}  d6 {[%clk 0:03:01]} 6. d4 {[%clk 0:03:02]}  Nbd7 {[%clk 0:03:01]} 7. Nc3 {[%clk 0:03:03]}  e5 {[%clk 0:03:01]} 8. h3 {[%clk 0:03:03]}  exd4 {[%clk 0:03:02]} 9. Qxd4 {[%clk 0:03:01]}  Re8 {[%clk 0:03:03]} 10. Qh4 {[%clk 0:03:01]}  h5 {[%clk 0:02:54]} 11. Bg5 {[%clk 0:02:59]}  c6 {[%clk 0:02:42]} 12. Ne4 {[%clk 0:02:48]}  Qe7 {[%clk 0:02:38]} 13. Nfd2 {[%clk 0:02:36]}  Qe6 {[%clk 0:02:29]} 14. Nxf6+ {[%clk 0:02:29]}  Nxf6 {[%clk 0:02:28]} 15. Nf3 {[%clk 0:02:13]}  Ne4 {[%clk 0:02:17]} 16. Rab1 {[%clk 0:01:51]}  Nxg5 {[%clk 0:02:08]} 17. Nxg5 {[%clk 0:01:46]}  Qxe2 {[%clk 0:01:56]} 18. Qf4 {[%clk 0:01:40]}  Qe7 {[%clk 0:01:56]} 19. Rbe1 {[%clk 0:01:39]}  Be5 {[%clk 0:01:50]} 20. Qd2 {[%clk 0:01:26]}  Qf8 {[%clk 0:01:43]} 21. f4 {[%clk 0:01:14]}  Bg7 {[%clk 0:01:42]} 22. Ne4 {[%clk 0:01:11]}  Rd8 {[%clk 0:01:37]} 23. Qe2 {[%clk 0:00:56]}  d5 {[%clk 0:01:27]} 24. cxd5 {[%clk 0:00:54]}  cxd5 {[%clk 0:01:28]} 25. Ng5 {[%clk 0:00:53]}  Bf5 {[%clk 0:00:48]} 26. g4 {[%clk 0:00:52]}  hxg4 {[%clk 0:00:49]} 27. hxg4 {[%clk 0:00:52]}  Qc5+ {[%clk 0:00:47]} 28. Kh2 {[%clk 0:00:49]}  Re8 {[%clk 0:00:47]} 29. Qxe8+ {[%clk 0:00:45]}  Rxe8 {[%clk 0:00:48]} 30. Rxe8+ {[%clk 0:00:45]}  Bf8 {[%clk 0:00:47]} 31. gxf5 {[%clk 0:00:45]}  gxf5 {[%clk 0:00:40]} 32. Rf3 {[%clk 0:00:40]}  Qd6 {[%clk 0:00:25]} 33. Rg3 {[%clk 0:00:33]}  Qd7 {[%clk 0:00:14]} 34. Ne6+ {[%clk 0:00:30]}  Kh8 {[%clk 0:00:13]} 35. Rxf8+ {[%clk 0:00:30]}  Kh7 {[%clk 0:00:14]} 36. Rxf7+ {[%clk 0:00:29]} 1-0


[Site "https://www.chess.com"]

[Event "Titled Tuesday Blitz October 11 Late 2022"]
[White "Le Goff, Ronan"]
[Black "Paravyan, David"]
[WhiteFideId "612073"]
[BlackFideId "4194985"]
[WhiteElo "2276"]
[BlackElo "2555"]
[Result "0-1"]
[Round "02"]
[TimeControl "180+1"]
[Date "2022.10.12"]
[WhiteClock "0:01:12"]
[BlackClock "0:00:53"]

1. d4 {[%clk 0:02:49]}  Nf6 {[%clk 0:02:27]} 2. Nf3 {[%clk 0:02:43]}  g6 {[%clk 0:02:27]} 3. Nc3 {[%clk 0:02:41]}  d5 {[%clk 0:02:26]} 4. Bf4 {[%clk 0:02:41]}  Bg7 {[%clk 0:02:26]} 5. e3 {[%clk 0:02:41]}  O-O {[%clk 0:02:26]} 6. Be2 {[%clk 0:02:40]}  c5 {[%clk 0:02:26]} 7. h3 {[%clk 0:02:40]}  cxd4 {[%clk 0:02:25]} 8. exd4 {[%clk 0:02:40]}  Nc6 {[%clk 0:02:26]} 9. Ne5 {[%clk 0:02:37]}  Ne4 {[%clk 0:02:24]} 10. Nxe4 {[%clk 0:02:35]}  dxe4 {[%clk 0:02:18]} 11. Nxc6 {[%clk 0:02:35]}  bxc6 {[%clk 0:02:19]} 12. c3 {[%clk 0:02:35]}  Qb6 {[%clk 0:02:19]} 13. Qb3 {[%clk 0:02:31]}  Be6 {[%clk 0:02:17]} 14. Qxb6 {[%clk 0:02:29]}  axb6 {[%clk 0:02:18]} 15. a3 {[%clk 0:02:29]}  b5 {[%clk 0:02:10]} 16. O-O {[%clk 0:02:27]}  Bd5 {[%clk 0:02:10]} 17. Rfc1 {[%clk 0:02:26]}  Rfe8 {[%clk 0:02:09]} 18. Be3 {[%clk 0:02:24]}  e5 {[%clk 0:02:08]} 19. dxe5 {[%clk 0:02:24]}  Bxe5 {[%clk 0:02:08]} 20. Rd1 {[%clk 0:02:23]}  Bb3 {[%clk 0:01:58]} 21. Rd7 {[%clk 0:02:22]}  Rad8 {[%clk 0:01:55]} 22. Rxd8 {[%clk 0:02:17]}  Rxd8 {[%clk 0:01:56]} 23. g3 {[%clk 0:02:11]}  f5 {[%clk 0:01:56]} 24. h4 {[%clk 0:02:10]}  Kf7 {[%clk 0:01:56]} 25. Kf1 {[%clk 0:02:10]}  Ke6 {[%clk 0:01:55]} 26. Ke1 {[%clk 0:02:10]}  Rd7 {[%clk 0:01:54]} 27. Bd1 {[%clk 0:02:08]}  Bxd1 {[%clk 0:01:47]} 28. Rxd1 {[%clk 0:02:09]}  Rxd1+ {[%clk 0:01:46]} 29. Kxd1 {[%clk 0:02:10]}  Kd5 {[%clk 0:01:47]} 30. Kc2 {[%clk 0:02:08]}  c5 {[%clk 0:01:47]} 31. b3 {[%clk 0:02:08]}  c4 {[%clk 0:01:44]} 32. b4 {[%clk 0:02:03]}  Kc6 {[%clk 0:01:29]} 33. Kd2 {[%clk 0:02:00]}  Kd5 {[%clk 0:01:28]} 34. Kc2 {[%clk 0:01:59]}  Bc7 {[%clk 0:01:28]} 35. Kd2 {[%clk 0:01:54]}  Bd8 {[%clk 0:01:27]} 36. Bh6 {[%clk 0:01:52]}  Bf6 {[%clk 0:01:27]} 37. Be3 {[%clk 0:01:50]}  Bg7 {[%clk 0:01:27]} 38. Kc2 {[%clk 0:01:45]}  Ke6 {[%clk 0:01:27]} 39. Bg5 {[%clk 0:01:41]}  Be5 {[%clk 0:01:15]} 40. Bh6 {[%clk 0:01:38]}  Bb8 {[%clk 0:01:15]} 41. Be3 {[%clk 0:01:34]}  Kf6 {[%clk 0:01:05]} 42. Bd4+ {[%clk 0:01:32]}  Kf7 {[%clk 0:01:04]} 43. Kb2 {[%clk 0:01:31]}  f4 {[%clk 0:01:01]} 44. gxf4 {[%clk 0:01:29]}  Bxf4 {[%clk 0:01:01]} 45. a4 {[%clk 0:01:29]}  bxa4 {[%clk 0:01:01]} 46. Ka3 {[%clk 0:01:29]}  h5 {[%clk 0:00:55]} 47. b5 {[%clk 0:01:25]}  g5 {[%clk 0:00:54]} 48. hxg5 {[%clk 0:01:24]}  h4 {[%clk 0:00:54]} 49. b6 {[%clk 0:01:18]}  h3 {[%clk 0:00:55]} 50. Be3 {[%clk 0:01:15]}  Bxe3 {[%clk 0:00:52]} 51. fxe3 {[%clk 0:01:11]}  h2 {[%clk 0:00:52]} 52. b7 {[%clk 0:01:12]}  h1=Q {[%clk 0:00:53]} 0-1


[Site "https://www.chess.com"]

[Event "Titled Tuesday Blitz October 11 Late 2022"]
[White "Luch, Michal"]
[Black "Bortnyk, Olexandr"]
[WhiteFideId "1120042"]
[BlackFideId "14120828"]
[WhiteElo "2363"]
[BlackElo "2723"]
[Result "0-1"]
[Round "02"]
[TimeControl "180+1"]
[Date "2022.10.11"]
[WhiteClock "0:00:03"]
[BlackClock "0:00:21"]

1. d4 {[%clk 0:03:00]}  d6 {[%clk 0:03:00]} 2. e4 {[%clk 0:03:00]}  Nf6 {[%clk 0:03:01]} 3. Nc3 {[%clk 0:03:00]}  Nbd7 {[%clk 0:03:01]} 4. g4 {[%clk 0:02:59]}  h6 {[%clk 0:03:01]} 5. h3 {[%clk 0:02:58]}  e5 {[%clk 0:03:00]} 6. Nge2 {[%clk 0:02:56]}  b5 {[%clk 0:03:00]} 7. Nxb5 {[%clk 0:02:47]}  Nxe4 {[%clk 0:02:59]} 8. Bg2 {[%clk 0:02:47]}  Bb7 {[%clk 0:02:59]} 9. O-O {[%clk 0:02:36]}  a6 {[%clk 0:02:56]} 10. Na3 {[%clk 0:02:09]}  d5 {[%clk 0:02:55]} 11. dxe5 {[%clk 0:02:04]}  Bxa3 {[%clk 0:02:54]} 12. bxa3 {[%clk 0:02:02]}  Nxe5 {[%clk 0:02:55]} 13. Rb1 {[%clk 0:01:55]}  Bc6 {[%clk 0:02:44]} 14. Qd4 {[%clk 0:01:30]}  Qf6 {[%clk 0:02:42]} 15. Bb2 {[%clk 0:01:14]}  Nf3+ {[%clk 0:02:09]} 16. Bxf3 {[%clk 0:01:09]}  Qxf3 {[%clk 0:02:10]} 17. Qe5+ {[%clk 0:00:50]}  Kd7 {[%clk 0:02:07]} 18. Nd4 {[%clk 0:00:50]}  Nd2 {[%clk 0:00:57]} 19. Rfd1 {[%clk 0:00:24]}  Rae8 {[%clk 0:00:57]} 20. Qxe8+ {[%clk 0:00:15]}  Rxe8 {[%clk 0:00:58]} 21. Nxf3 {[%clk 0:00:14]}  Nxf3+ {[%clk 0:00:59]} 22. Kf1 {[%clk 0:00:14]}  g5 {[%clk 0:00:49]} 23. Bd4 {[%clk 0:00:13]}  Bb5+ {[%clk 0:00:43]} 24. Kg2 {[%clk 0:00:13]}  Nh4+ {[%clk 0:00:44]} 25. Kg3 {[%clk 0:00:12]}  Re2 {[%clk 0:00:44]} 26. c3 {[%clk 0:00:05]}  Rxa2 {[%clk 0:00:39]} 27. Re1 {[%clk 0:00:04]}  f5 {[%clk 0:00:37]} 28. gxf5 {[%clk 0:00:04]}  Nxf5+ {[%clk 0:00:38]} 29. Kg4 {[%clk 0:00:04]}  Nxd4 {[%clk 0:00:33]} 30. cxd4 {[%clk 0:00:05]}  Rxf2 {[%clk 0:00:34]} 31. Re3 {[%clk 0:00:05]}  Rf4+ {[%clk 0:00:34]} 32. Kh5 {[%clk 0:00:05]}  Rh4+ {[%clk 0:00:34]} 33. Kg6 {[%clk 0:00:05]}  g4 {[%clk 0:00:33]} 34. hxg4 {[%clk 0:00:04]}  Rxg4+ {[%clk 0:00:34]} 35. Kxh6 {[%clk 0:00:03]}  Rxd4 {[%clk 0:00:35]} 36. Rbe1 {[%clk 0:00:02]}  Rd2 {[%clk 0:00:31]} 37. Kg5 {[%clk 0:00:02]}  d4 {[%clk 0:00:30]} 38. Rh3 {[%clk 0:00:03]}  Kd6 {[%clk 0:00:29]} 39. Rh6+ {[%clk 0:00:03]}  Kd5 {[%clk 0:00:29]} 40. Kf4 {[%clk 0:00:03]}  Rf2+ {[%clk 0:00:26]} 41. Kg3 {[%clk 0:00:03]}  Rc2 {[%clk 0:00:27]} 42. Re7 {[%clk 0:00:03]}  c5 {[%clk 0:00:27]} 43. Kf4 {[%clk 0:00:03]}  Kc4 {[%clk 0:00:24]} 44. Re5 {[%clk 0:00:03]}  Kb3 {[%clk 0:00:22]} 45. Rh3+ {[%clk 0:00:02]}  d3 {[%clk 0:00:20]} 46. a4 {[%clk 0:00:03]}  Kxa4 {[%clk 0:00:20]} 47. Ke3 {[%clk 0:00:03]}  Re2+ {[%clk 0:00:20]} 48. Kf4 {[%clk 0:00:03]}  Rxe5 {[%clk 0:00:20]} 49. Kxe5 {[%clk 0:00:04]}  d2 {[%clk 0:00:21]} 50. Rh1 {[%clk 0:00:03]}  Be2 {[%clk 0:00:21]} 0-1


[Site "https://www.chess.com"]

[Event "Titled Tuesday Blitz October 11 Late 2022"]
[White "Mahajan, Rushaan"]
[Black "Ward, Ieuan C"]
[WhiteFideId "30934222"]
[BlackFideId "406627"]
[WhiteElo "2148"]
[BlackElo "2338"]
[Result "0-1"]
[Round "02"]
[TimeControl "180+1"]
[Date "2022.10.12"]
[WhiteClock "0:00:02"]
[BlackClock "0:00:29"]

1. Nf3 {[%clk 0:03:00]}  d5 {[%clk 0:02:57]} 2. g3 {[%clk 0:02:58]}  Nf6 {[%clk 0:02:56]} 3. Bg2 {[%clk 0:02:59]}  e6 {[%clk 0:02:57]} 4. c4 {[%clk 0:02:58]}  Be7 {[%clk 0:02:57]} 5. d4 {[%clk 0:02:58]}  O-O {[%clk 0:02:58]} 6. Nc3 {[%clk 0:02:56]}  a6 {[%clk 0:02:57]} 7. b3 {[%clk 0:02:52]}  c5 {[%clk 0:02:54]} 8. cxd5 {[%clk 0:02:49]}  exd5 {[%clk 0:02:50]} 9. O-O {[%clk 0:02:49]}  Nc6 {[%clk 0:02:50]} 10. Bb2 {[%clk 0:02:47]}  Bg4 {[%clk 0:02:39]} 11. dxc5 {[%clk 0:02:41]}  Bxc5 {[%clk 0:02:40]} 12. Rb1 {[%clk 0:02:32]}  Ne4 {[%clk 0:02:26]} 13. Nxd5 {[%clk 0:02:21]}  Qa5 {[%clk 0:02:16]} 14. Qd3 {[%clk 0:01:53]}  Rfe8 {[%clk 0:02:01]} 15. h3 {[%clk 0:01:28]}  Bh5 {[%clk 0:01:48]} 16. b4 {[%clk 0:01:19]}  Nxb4 {[%clk 0:01:42]} 17. Nxb4 {[%clk 0:01:17]}  Bxb4 {[%clk 0:01:42]} 18. Qd4 {[%clk 0:00:55]}  Bf8 {[%clk 0:01:41]} 19. Rfd1 {[%clk 0:00:48]}  Rad8 {[%clk 0:01:37]} 20. Qc4 {[%clk 0:00:41]}  Rxd1+ {[%clk 0:01:28]} 21. Rxd1 {[%clk 0:00:39]}  Bxf3 {[%clk 0:01:21]} 22. Bxf3 {[%clk 0:00:38]}  Nd2 {[%clk 0:01:21]} 23. Qc3 {[%clk 0:00:25]}  Nxf3+ {[%clk 0:01:15]} 24. Qxf3 {[%clk 0:00:22]}  Qxa2 {[%clk 0:01:14]} 25. Qc3 {[%clk 0:00:17]}  Rxe2 {[%clk 0:01:07]} 26. Rd8 {[%clk 0:00:11]}  Qxb2 {[%clk 0:00:57]} 27. Qc5 {[%clk 0:00:10]}  Qb1+ {[%clk 0:00:52]} 28. Kh2 {[%clk 0:00:09]}  h6 {[%clk 0:00:36]} 29. Qxf8+ {[%clk 0:00:08]}  Kh7 {[%clk 0:00:36]} 30. Qg8+ {[%clk 0:00:06]}  Kg6 {[%clk 0:00:36]} 31. Rd6+ {[%clk 0:00:06]}  f6 {[%clk 0:00:30]} 32. Kg2 {[%clk 0:00:02]}  Qe4+ {[%clk 0:00:29]} 33. Kf1 {[%clk 0:00:02]}  Re1# {[%clk 0:00:29]} 0-1


[Site "https://www.chess.com"]